[Event "*** Titled Tuesday Blitz"]
[Site "Chess.com"]
[Date "2019.08.06"]
[Round "4"]
[White "MarianPetrov"]
[Black "WPWPWP-2015"]
[Result "1/2-1/2"]
[WhiteElo "2546"]
[BlackElo "2411"]
[TimeControl "180+2"]
[EndTime "13:53:51 PDT"]
[Termination "Game drawn by repetition"]

1. e4 {[%clk 0:03:01.9]} 1... e5 {[%clk 0:02:59.7]} 2. Nc3 {[%clk 0:03:01.7]}
2... Nf6 {[%clk 0:02:59.3]} 3. Bc4 {[%clk 0:03:00.1]} 3... Nc6 {[%clk
0:02:58.5]} 4. d3 {[%clk 0:03:00.2]} 4... Be7 {[%clk 0:02:58.3]} 5. f4 {[%clk
0:03:01]} 5... d6 {[%clk 0:02:58.6]} 6. Nf3 {[%clk 0:03:01.7]} 6... O-O {[%clk
0:02:58.6]} 7. O-O {[%clk 0:03:02.6]} 7... a6 {[%clk 0:02:57.2]} 8. a3 {[%clk
0:03:02.8]} 8... b5 {[%clk 0:02:57.5]} 9. Ba2 {[%clk 0:03:00.6]} 9... Bg4 {[%clk
0:02:52.2]} 10. h3 {[%clk 0:03:00]} 10... Bxf3 {[%clk 0:02:53]} 11. Qxf3 {[%clk
0:03:01.9]} 11... Nd4 {[%clk 0:02:53.9]} 12. Qf2 {[%clk 0:03:03.1]} 12... c6
{[%clk 0:02:53.9]} 13. Be3 {[%clk 0:03:03.2]} 13... Ne6 {[%clk 0:02:02.4]} 14.
f5 {[%clk 0:02:58.3]} 14... Nc7 {[%clk 0:02:02.8]} 15. g4 {[%clk 0:02:58.9]}
15... Nd7 {[%clk 0:02:02.8]} 16. Qg2 {[%clk 0:02:33.2]} 16... h6 {[%clk
0:01:49.8]} 17. Nb1 {[%clk 0:02:19.5]} 17... Nc5 {[%clk 0:01:17.1]} 18. Nd2
{[%clk 0:02:17.9]} 18... Na4 {[%clk 0:01:14.2]} 19. Rab1 {[%clk 0:02:18.6]}
19... d5 {[%clk 0:01:11.3]} 20. Nf3 {[%clk 0:02:17.8]} 20... Bc5 {[%clk
0:01:01.2]} 21. Qf2 {[%clk 0:02:11.6]} 21... Qe7 {[%clk 0:00:44.9]} 22. h4
{[%clk 0:01:34.2]} 22... dxe4 {[%clk 0:00:37.2]} 23. dxe4 {[%clk 0:01:33.3]}
23... Bxe3 {[%clk 0:00:37.2]} 24. Qxe3 {[%clk 0:01:35.2]} 24... Qc5 {[%clk
0:00:35.8]} 25. Qxc5 {[%clk 0:01:32.5]} 25... Nxc5 {[%clk 0:00:37.7]} 26. Nxe5
{[%clk 0:01:33]} 26... Nxe4 {[%clk 0:00:38.3]} 27. Rbe1 {[%clk 0:01:25.4]} 27...
Nd6 {[%clk 0:00:14.2]} 28. Nxc6 {[%clk 0:01:21.6]} 28... Rfe8 {[%clk 0:00:12.7]}
29. Ne7+ {[%clk 0:01:13]} 29... Kf8 {[%clk 0:00:12.2]} 30. Nd5 {[%clk
0:01:09.9]} 30... Nxd5 {[%clk 0:00:08.6]} 31. Bxd5 {[%clk 0:01:11.8]} 31... Rac8
{[%clk 0:00:08.9]} 32. c3 {[%clk 0:01:12.9]} 32... Nc4 {[%clk 0:00:06.9]} 33.
Rxe8+ {[%clk 0:00:57.7]} 33... Rxe8 {[%clk 0:00:06.8]} 34. Bxc4 {[%clk
0:00:54.2]} 34... bxc4 {[%clk 0:00:08.7]} 35. Kg2 {[%clk 0:00:48.8]} 35... Re2+
{[%clk 0:00:07.2]} 36. Rf2 {[%clk 0:00:50]} 36... Re3 {[%clk 0:00:08.5]} 37. Rf4
{[%clk 0:00:42.8]} 37... Re2+ {[%clk 0:00:09.2]} 38. Kf3 {[%clk 0:00:44.4]}
38... Rxb2 {[%clk 0:00:10.1]} 39. Rxc4 {[%clk 0:00:46.1]} 39... Rb3 {[%clk
0:00:11.4]} 40. a4 {[%clk 0:00:44.7]} 40... Ke7 {[%clk 0:00:11.1]} 41. Rc6
{[%clk 0:00:39.6]} 41... Ra3 {[%clk 0:00:09.3]} 42. Rc7+ {[%clk 0:00:33.4]}
42... Kf6 {[%clk 0:00:05.3]} 43. Rc4 {[%clk 0:00:24.8]} 43... h5 {[%clk
0:00:05.8]} 44. Rc6+ {[%clk 0:00:19]} 44... Ke5 {[%clk 0:00:06.4]} 45. gxh5
{[%clk 0:00:11.3]} 45... Kxf5 {[%clk 0:00:07.2]} 46. Rc5+ {[%clk 0:00:08.8]}
46... Ke6 {[%clk 0:00:07.6]} 47. a5 {[%clk 0:00:10.4]} 47... Ra4 {[%clk
0:00:08]} 48. c4 {[%clk 0:00:09.7]} 48... Ra1 {[%clk 0:00:08.9]} 49. Rc6+ {[%clk
0:00:10.1]} 49... Ke5 {[%clk 0:00:05.6]} 50. Rxa6 {[%clk 0:00:12]} 50... Ra3+
{[%clk 0:00:05.4]} 51. Kg4 {[%clk 0:00:13]} 51... Ra4 {[%clk 0:00:06.1]} 52. Ra7
{[%clk 0:00:11.8]} 52... Rxc4+ {[%clk 0:00:06.7]} 53. Kg5 {[%clk 0:00:13.2]}
53... Ke6 {[%clk 0:00:04.7]} 54. Ra8 {[%clk 0:00:11.8]} 54... Rc5+ {[%clk
0:00:05.5]} 55. Kg4 {[%clk 0:00:12.8]} 55... Rc4+ {[%clk 0:00:06.8]} 56. Kg3
{[%clk 0:00:13.7]} 56... Rc3+ {[%clk 0:00:08.1]} 57. Kf2 {[%clk 0:00:14.7]}
57... Rc4 {[%clk 0:00:09]} 58. Kg3 {[%clk 0:00:14.5]} 58... Kf6 {[%clk
0:00:08.8]} 59. a6 {[%clk 0:00:13.8]} 59... Ra4 {[%clk 0:00:08.8]} 60. a7 {[%clk
0:00:13.4]} 60... Ra6 {[%clk 0:00:08.8]} 61. Kf4 {[%clk 0:00:13.2]} 61... Ra4+
{[%clk 0:00:09.3]} 62. Ke3 {[%clk 0:00:14.1]} 62... Ra1 {[%clk 0:00:10.4]} 63.
Kd4 {[%clk 0:00:15.2]} 63... Ra2 {[%clk 0:00:11.7]} 64. Kc5 {[%clk 0:00:16.2]}
64... Ra1 {[%clk 0:00:13]} 65. Kd6 {[%clk 0:00:17.4]} 65... Rd1+ {[%clk
0:00:13.7]} 66. Kc7 {[%clk 0:00:18.4]} 66... Rc1+ {[%clk 0:00:15.3]} 67. Kd7
{[%clk 0:00:20]} 67... Rd1+ {[%clk 0:00:16.5]} 68. Ke8 {[%clk 0:00:21.3]} 68...
Ra1 {[%clk 0:00:17.2]} 69. Kf8 {[%clk 0:00:22.6]} 69... Ra2 {[%clk 0:00:17.9]}
70. Kg8 {[%clk 0:00:23.8]} 70... Ra5 {[%clk 0:00:19.1]} 71. Kh7 {[%clk
0:00:24.2]} 71... Rxh5+ {[%clk 0:00:19.6]} 72. Kg8 {[%clk 0:00:25.3]} 72... Ra5
{[%clk 0:00:21.1]} 73. h5 {[%clk 0:00:25.1]} 73... Ra6 {[%clk 0:00:21.2]} 74.
Kh7 {[%clk 0:00:23.2]} 74... Ra5 {[%clk 0:00:22.3]} 75. Kg8 {[%clk 0:00:23.9]}
75... Ra1 {[%clk 0:00:22.8]} 76. Kh8 {[%clk 0:00:21.3]} 76... Ra5 {[%clk
0:00:22.9]} 77. Kg8 {[%clk 0:00:22]} 1/2-1/2

[Event "*** Titled Tuesday Blitz"]
[Site "Chess.com"]
[Date "2019.08.06"]
[Round "4"]
[White "chessdjw"]
[Black "StephenDedalus83"]
[Result "0-1"]
[WhiteElo "2654"]
[BlackElo "2821"]
[TimeControl "180+2"]
[EndTime "13:54:18 PDT"]
[Termination "StephenDedalus83 won by resignation"]

1. d4 {[%clk 0:03:01.9]} 1... g6 {[%clk 0:02:57.9]} 2. c4 {[%clk 0:03:01.4]}
2... Bg7 {[%clk 0:02:56.1]} 3. Nc3 {[%clk 0:03:01.6]} 3... d6 {[%clk 0:02:54.4]}
4. e4 {[%clk 0:03:01.2]} 4... Nc6 {[%clk 0:02:53.5]} 5. d5 {[%clk 0:03:01.4]}
5... Nb8 {[%clk 0:02:53.9]} 6. Nf3 {[%clk 0:03:01.7]} 6... c6 {[%clk 0:02:53.8]}
7. h3 {[%clk 0:03:01.8]} 7... Nf6 {[%clk 0:02:51.6]} 8. Bd3 {[%clk 0:03:02.2]}
8... Na6 {[%clk 0:02:50]} 9. O-O {[%clk 0:03:03]} 9... O-O {[%clk 0:02:50.7]}
10. Re1 {[%clk 0:03:03.9]} 10... Nc5 {[%clk 0:02:48.2]} 11. Bf1 {[%clk
0:03:05.4]} 11... a5 {[%clk 0:02:48.9]} 12. Bf4 {[%clk 0:03:04.2]} 12... cxd5
{[%clk 0:02:43.9]} 13. exd5 {[%clk 0:02:57.5]} 13... a4 {[%clk 0:02:42.8]} 14.
Rc1 {[%clk 0:02:55.8]} 14... Re8 {[%clk 0:02:41.3]} 15. Nd4 {[%clk 0:02:43.5]}
15... Bd7 {[%clk 0:02:19.8]} 16. Bh2 {[%clk 0:02:35.9]} 16... Qb6 {[%clk
0:02:18.3]} 17. Rc2 {[%clk 0:02:31.8]} 17... Rad8 {[%clk 0:01:53.4]} 18. Rce2
{[%clk 0:02:31.5]} 18... e5 {[%clk 0:01:52.8]} 19. dxe6 {[%clk 0:02:29.2]} 19...
fxe6 {[%clk 0:01:53.8]} 20. Ndb5 {[%clk 0:02:21.7]} 20... Bxb5 {[%clk
0:01:50.5]} 21. Nxb5 {[%clk 0:02:16]} 21... e5 {[%clk 0:01:38.8]} 22. b4 {[%clk
0:02:08.1]} 22... axb3 {[%clk 0:01:37.6]} 23. axb3 {[%clk 0:02:10]} 23... Bh6
{[%clk 0:01:30.1]} 24. b4 {[%clk 0:02:03.3]} 24... Ne6 {[%clk 0:01:30.5]} 25.
Qb3 {[%clk 0:01:51.2]} 25... Kh8 {[%clk 0:01:20.5]} 26. Nxd6 {[%clk 0:00:10.4]}
26... Qxd6 {[%clk 0:01:20.7]} 27. Bxe5 {[%clk 0:00:10.3]} 27... Qf8 {[%clk
0:01:21.6]} 28. c5 {[%clk 0:00:11.6]} 28... Ng7 {[%clk 0:01:02.8]} 29. Qb2
{[%clk 0:00:09.3]} 29... Nd7 {[%clk 0:00:49.8]} 30. Bd4 {[%clk 0:00:03.1]} 30...
Rxe2 {[%clk 0:00:47.9]} 31. Rxe2 {[%clk 0:00:03.4]} 31... Nb8 {[%clk 0:00:46.9]}
32. g3 {[%clk 0:00:02.2]} 32... Nc6 {[%clk 0:00:47.3]} 33. Bc3 {[%clk
0:00:04.1]} 33... Rd1 {[%clk 0:00:40.7]} 34. Kg2 {[%clk 0:00:04.9]} 34... Rd8
{[%clk 0:00:28]} 35. b5 {[%clk 0:00:06.3]} 35... Ne7 {[%clk 0:00:27.3]} 36. Kh2
{[%clk 0:00:06.9]} 36... Nd5 {[%clk 0:00:28.1]} 37. Bd4 {[%clk 0:00:06.9]} 37...
Bg5 {[%clk 0:00:28.7]} 38. Bg2 {[%clk 0:00:07.9]} 38... h5 {[%clk 0:00:22.6]}
39. h4 {[%clk 0:00:09]} 39... Bh6 {[%clk 0:00:22.8]} 40. Re6 {[%clk 0:00:09.8]}
40... Qf5 {[%clk 0:00:20.4]} 41. Re5 {[%clk 0:00:09.4]} 41... Qf7 {[%clk
0:00:21.2]} 42. c6 {[%clk 0:00:06.2]} 42... bxc6 {[%clk 0:00:21.4]} 43. bxc6
{[%clk 0:00:07.8]} 43... Nc7 {[%clk 0:00:22.7]} 44. Bc5 {[%clk 0:00:08.6]} 44...
Nce6 {[%clk 0:00:20.9]} 45. Bb6 {[%clk 0:00:07.7]} 45... Rc8 {[%clk 0:00:21.4]}
46. Ra5 {[%clk 0:00:06.8]} 46... Kh7 {[%clk 0:00:21.3]} 47. Ra7 {[%clk 0:00:08]}
47... Nc7 {[%clk 0:00:22.2]} 48. Qe5 {[%clk 0:00:07.9]} 48... Nge6 {[%clk
0:00:23.1]} 49. Bh3 {[%clk 0:00:09.1]} 49... Bg7 {[%clk 0:00:23.9]} 50. Qxe6
{[%clk 0:00:08.6]} 50... Qxe6 {[%clk 0:00:24.7]} 51. Bxe6 {[%clk 0:00:09.3]}
51... Nxe6 {[%clk 0:00:25.7]} 52. c7 {[%clk 0:00:08.4]} 52... Bd4 {[%clk
0:00:26]} 53. Bxd4 {[%clk 0:00:04.8]} 53... Nxd4 {[%clk 0:00:26.7]} 54. Kg2
{[%clk 0:00:02.4]} 54... Kg7 {[%clk 0:00:27.6]} 55. f3 {[%clk 0:00:03.6]} 55...
Kf7 {[%clk 0:00:27.8]} 56. g4 {[%clk 0:00:05.1]} 56... Ne6 {[%clk 0:00:28.4]}
57. gxh5 {[%clk 0:00:06.3]} 57... gxh5 {[%clk 0:00:29.4]} 58. Ra5 {[%clk
0:00:08.2]} 58... Rxc7 {[%clk 0:00:30.5]} 59. Kg3 {[%clk 0:00:09.5]} 59... Kg6
{[%clk 0:00:31.1]} 60. Ra6 {[%clk 0:00:11.1]} 60... Re7 {[%clk 0:00:31.9]} 61.
f4 {[%clk 0:00:11.6]} 61... Kf6 {[%clk 0:00:32.6]} 62. Kf3 {[%clk 0:00:12.7]}
62... Rb7 {[%clk 0:00:31.6]} 63. Ra5 {[%clk 0:00:12.7]} 63... Ng7 {[%clk
0:00:32.2]} 64. Ra6+ {[%clk 0:00:13]} 64... Kf7 {[%clk 0:00:33.1]} 65. Ke4
{[%clk 0:00:13.6]} 65... Rb4+ {[%clk 0:00:33.8]} 66. Ke5 {[%clk 0:00:14.8]}
66... Rb5+ {[%clk 0:00:35]} 67. Ke4 {[%clk 0:00:16]} 67... Nf5 {[%clk
0:00:35.9]} 68. Ra7+ {[%clk 0:00:17.1]} 68... Ke6 {[%clk 0:00:36.6]} 69. Rh7
{[%clk 0:00:16.9]} 69... Ng3+ {[%clk 0:00:35]} 70. Kf3 {[%clk 0:00:17.1]} 70...
Rb3+ {[%clk 0:00:35.8]} 71. Kg2 {[%clk 0:00:17.2]} 71... Kf5 {[%clk 0:00:36.9]}
72. Rf7+ {[%clk 0:00:16.3]} 72... Kg4 {[%clk 0:00:37.4]} 73. Rg7+ {[%clk
0:00:09.4]} 73... Kxh4 {[%clk 0:00:36.8]} 74. Rg5 {[%clk 0:00:03.8]} 74... Ne4
{[%clk 0:00:36.2]} 75. Rg8 {[%clk 0:00:04.8]} 75... Rg3+ {[%clk 0:00:36]} 76.
Rxg3 {[%clk 0:00:05.7]} 76... Nxg3 {[%clk 0:00:37.1]} 77. Kf3 {[%clk 0:00:07.6]}
77... Nf5 {[%clk 0:00:38.1]} 78. Ke4 {[%clk 0:00:07.7]} 78... Kg4 {[%clk
0:00:39]} 0-1

[Event "*** Titled Tuesday Blitz"]
[Site "Chess.com"]
[Date "2019.08.06"]
[Round "4"]
[White "Ginzburg_Yakov"]
[Black "GMMarcinDziuba"]
[Result "0-1"]
[WhiteElo "2509"]
[BlackElo "2704"]
[TimeControl "180+2"]
[EndTime "13:54:50 PDT"]
[Termination "GMMarcinDziuba won by resignation"]

1. e4 {[%clk 0:03:01.6]} 1... g6 {[%clk 0:02:59.9]} 2. d4 {[%clk 0:03:00.3]}
2... Bg7 {[%clk 0:03:01.5]} 3. g3 {[%clk 0:03:00.8]} 3... d6 {[%clk 0:03:02.8]}
4. Nc3 {[%clk 0:03:01.9]} 4... Nf6 {[%clk 0:03:03.2]} 5. Bg2 {[%clk 0:03:03.3]}
5... O-O {[%clk 0:03:02.9]} 6. Nge2 {[%clk 0:03:04.7]} 6... Nc6 {[%clk
0:03:03.5]} 7. O-O {[%clk 0:03:05.4]} 7... e5 {[%clk 0:03:04.2]} 8. dxe5 {[%clk
0:02:11.1]} 8... Nxe5 {[%clk 0:03:06.1]} 9. b3 {[%clk 0:01:57.4]} 9... Re8
{[%clk 0:02:51]} 10. Bb2 {[%clk 0:01:58]} 10... Bd7 {[%clk 0:02:43.6]} 11. Nd4
{[%clk 0:01:58.3]} 11... Qc8 {[%clk 0:02:41.5]} 12. Re1 {[%clk 0:01:57.3]} 12...
Bh3 {[%clk 0:02:38.3]} 13. Bh1 {[%clk 0:01:58.3]} 13... a6 {[%clk 0:02:36.3]}
14. Qd2 {[%clk 0:01:57.7]} 14... h5 {[%clk 0:02:36.2]} 15. Rad1 {[%clk
0:01:28.8]} 15... Bg4 {[%clk 0:02:32.9]} 16. f3 {[%clk 0:01:28.3]} 16... Bh3
{[%clk 0:02:34.2]} 17. Nde2 {[%clk 0:01:22.2]} 17... Kh7 {[%clk 0:02:28.5]} 18.
Nf4 {[%clk 0:01:18.8]} 18... Bd7 {[%clk 0:02:12.9]} 19. Qf2 {[%clk 0:01:19.2]}
19... h4 {[%clk 0:02:10.2]} 20. g4 {[%clk 0:01:16.1]} 20... g5 {[%clk
0:01:46.2]} 21. Nh3 {[%clk 0:01:16.7]} 21... Bh6 {[%clk 0:01:43.4]} 22. Bc1
{[%clk 0:01:17.4]} 22... Rg8 {[%clk 0:01:37.5]} 23. Nd5 {[%clk 0:00:57.5]} 23...
Nxd5 {[%clk 0:01:38.5]} 24. Rxd5 {[%clk 0:00:58.8]} 24... Qd8 {[%clk 0:01:18.8]}
25. Qe2 {[%clk 0:00:43.3]} 25... Qf6 {[%clk 0:01:15.2]} 26. Nf2 {[%clk
0:00:44.6]} 26... Bc6 {[%clk 0:01:03.3]} 27. Rdd1 {[%clk 0:00:43.3]} 27... Ng6
{[%clk 0:01:04.4]} 28. Nd3 {[%clk 0:00:42.4]} 28... Rae8 {[%clk 0:00:58.2]} 29.
Bb2 {[%clk 0:00:43.2]} 29... Qe7 {[%clk 0:00:54.7]} 30. Qd2 {[%clk 0:00:39.8]}
30... Bg7 {[%clk 0:00:55]} 31. c4 {[%clk 0:00:33.3]} 31... b6 {[%clk 0:00:21.3]}
32. Bg2 {[%clk 0:00:33.4]} 32... a5 {[%clk 0:00:21.8]} 33. Bf1 {[%clk
0:00:23.8]} 33... Ra8 {[%clk 0:00:18.2]} 34. a3 {[%clk 0:00:24.3]} 34... Rge8
{[%clk 0:00:17.9]} 35. Bxg7 {[%clk 0:00:23.9]} 35... Kxg7 {[%clk 0:00:18.5]} 36.
Rc1 {[%clk 0:00:18.3]} 36... Qf6 {[%clk 0:00:19.2]} 37. Qc3 {[%clk 0:00:13.5]}
37... Reb8 {[%clk 0:00:13]} 38. Qxf6+ {[%clk 0:00:13.8]} 38... Kxf6 {[%clk
0:00:14.9]} 39. Kf2 {[%clk 0:00:15.2]} 39... Bd7 {[%clk 0:00:14.5]} 40. Ke3
{[%clk 0:00:15.8]} 40... Ra7 {[%clk 0:00:14.4]} 41. Kd4 {[%clk 0:00:17.1]} 41...
b5 {[%clk 0:00:15.5]} 42. c5 {[%clk 0:00:17.6]} 42... Ne5 {[%clk 0:00:13.2]} 43.
Nxe5 {[%clk 0:00:11.1]} 43... dxe5+ {[%clk 0:00:15.1]} 44. Ke3 {[%clk
0:00:12.9]} 44... Be6 {[%clk 0:00:17]} 45. b4 {[%clk 0:00:11.4]} 45... axb4
{[%clk 0:00:17.9]} 46. axb4 {[%clk 0:00:12.9]} 46... c6 {[%clk 0:00:13.8]} 47.
Red1 {[%clk 0:00:11.8]} 47... Ra3+ {[%clk 0:00:13.7]} 48. Rd3 {[%clk 0:00:11.4]}
48... Rba8 {[%clk 0:00:13.4]} 49. Rd1 {[%clk 0:00:09.3]} 49... Bc4 {[%clk
0:00:13.6]} 50. Rxa3 {[%clk 0:00:09.1]} 50... Rxa3+ {[%clk 0:00:15.5]} 51. Kf2
{[%clk 0:00:10.5]} 51... Bxf1 {[%clk 0:00:16.1]} 52. Rxf1 {[%clk 0:00:12]} 52...
Ra2+ {[%clk 0:00:14.3]} 53. Ke3 {[%clk 0:00:09.5]} 53... Rxh2 {[%clk 0:00:13.4]}
54. Rd1 {[%clk 0:00:11]} 54... Rb2 {[%clk 0:00:14.1]} 55. Rd6+ {[%clk
0:00:12.7]} 55... Kg7 {[%clk 0:00:15.4]} 56. Rxc6 {[%clk 0:00:14.3]} 56... h3
{[%clk 0:00:16.1]} 57. Rd6 {[%clk 0:00:14.3]} 57... Rxb4 {[%clk 0:00:15.3]} 58.
Rd1 {[%clk 0:00:14.8]} 58... Rc4 {[%clk 0:00:14]} 59. Rh1 {[%clk 0:00:16.5]}
59... Rxc5 {[%clk 0:00:12.1]} 60. Rxh3 {[%clk 0:00:17.6]} 60... Rc6 {[%clk
0:00:07.7]} 61. Rh1 {[%clk 0:00:18.5]} 61... Rb6 {[%clk 0:00:08.7]} 62. Kd2
{[%clk 0:00:15.8]} 62... b4 {[%clk 0:00:09.5]} 63. Kc2 {[%clk 0:00:17.3]} 63...
Kf8 {[%clk 0:00:05.4]} 64. Rh5 {[%clk 0:00:15]} 64... f6 {[%clk 0:00:03.5]} 65.
Rh7 {[%clk 0:00:16.3]} 65... Rc6+ {[%clk 0:00:03.7]} 66. Kb3 {[%clk 0:00:16.4]}
66... Rc3+ {[%clk 0:00:05.6]} 67. Kxb4 {[%clk 0:00:17.9]} 67... Rxf3 {[%clk
0:00:07.5]} 68. Kc5 {[%clk 0:00:19.2]} 68... Rf4 {[%clk 0:00:08.8]} 69. Kd5
{[%clk 0:00:20.3]} 69... Rxg4 {[%clk 0:00:10.5]} 70. Ke6 {[%clk 0:00:21.8]}
70... Rf4 {[%clk 0:00:12.4]} 71. Ra7 {[%clk 0:00:06.8]} 71... Kg8 {[%clk
0:00:13.4]} 72. Rb7 {[%clk 0:00:06.8]} 72... g4 {[%clk 0:00:14.4]} 73. Ra7
{[%clk 0:00:07.6]} 73... Rf3 {[%clk 0:00:14.9]} 74. Ra2 {[%clk 0:00:05.5]} 74...
Kg7 {[%clk 0:00:14.6]} 75. Ra7+ {[%clk 0:00:06.1]} 75... Kg6 {[%clk 0:00:15.6]}
76. Ra8 {[%clk 0:00:06.2]} 76... Kg5 {[%clk 0:00:16.5]} 77. Rg8+ {[%clk
0:00:06.1]} 77... Kh4 {[%clk 0:00:16.4]} 78. Rh8+ {[%clk 0:00:06.9]} 78... Kg3
{[%clk 0:00:17]} 79. Kf7 {[%clk 0:00:05.3]} 79... Rf4 {[%clk 0:00:15.7]} 80. Kg6
{[%clk 0:00:05.4]} 80... Kf3 {[%clk 0:00:16.8]} 0-1

[Event "*** Titled Tuesday Blitz"]
[Site "Chess.com"]
[Date "2019.08.06"]
[Round "4"]
[White "nailbeshirli"]
[Black "Sanan_Sjugirov"]
[Result "1-0"]
[WhiteElo "2656"]
[BlackElo "2887"]
[TimeControl "180+2"]
[EndTime "13:55:35 PDT"]
[Termination "nailbeshirli won by resignation"]

1. e4 {[%clk 0:03:01.9]} 1... c6 {[%clk 0:02:58.9]} 2. Nf3 {[%clk 0:02:59.8]}
2... d5 {[%clk 0:02:59.7]} 3. Nc3 {[%clk 0:02:58.3]} 3... Bg4 {[%clk 0:02:59.6]}
4. h3 {[%clk 0:02:57.5]} 4... Bxf3 {[%clk 0:03:00.5]} 5. Qxf3 {[%clk 0:02:59.4]}
5... e6 {[%clk 0:03:01.1]} 6. d3 {[%clk 0:02:54.2]} 6... Nd7 {[%clk 0:02:57.2]}
7. g3 {[%clk 0:02:54.3]} 7... Bc5 {[%clk 0:02:48]} 8. Bg2 {[%clk 0:02:49.4]}
8... Ne7 {[%clk 0:02:48.5]} 9. O-O {[%clk 0:02:49.4]} 9... O-O {[%clk
0:02:49.3]} 10. Bd2 {[%clk 0:02:47.7]} 10... f5 {[%clk 0:02:49.1]} 11. Qe2
{[%clk 0:02:32.5]} 11... Ng6 {[%clk 0:02:42.7]} 12. Rae1 {[%clk 0:02:24.2]}
12... dxe4 {[%clk 0:02:31.6]} 13. dxe4 {[%clk 0:02:18.8]} 13... f4 {[%clk
0:02:32.7]} 14. Qg4 {[%clk 0:02:15]} 14... fxg3 {[%clk 0:01:32.4]} 15. Qxg3
{[%clk 0:02:14.3]} 15... Nf6 {[%clk 0:01:04.4]} 16. Bc1 {[%clk 0:02:01.5]} 16...
Nh5 {[%clk 0:00:59.8]} 17. Qg4 {[%clk 0:01:58.7]} 17... Nhf4 {[%clk 0:01:00.2]}
18. Ne2 {[%clk 0:01:51.3]} 18... h5 {[%clk 0:00:45.3]} 19. Qg3 {[%clk
0:01:47.6]} 19... Bd6 {[%clk 0:00:42.8]} 20. Nxf4 {[%clk 0:01:38.6]} 20... Nxf4
{[%clk 0:00:44.7]} 21. e5 {[%clk 0:01:34.1]} 21... Nxg2 {[%clk 0:00:43.6]} 22.
Kxg2 {[%clk 0:01:36]} 22... Bc5 {[%clk 0:00:40.5]} 23. Rd1 {[%clk 0:01:29.7]}
23... Qe8 {[%clk 0:00:38.5]} 24. f4 {[%clk 0:01:26.5]} 24... Qf7 {[%clk
0:00:31.4]} 25. Rd3 {[%clk 0:01:21.4]} 25... Rad8 {[%clk 0:00:29.1]} 26. Rfd1
{[%clk 0:01:22.3]} 26... Rd5 {[%clk 0:00:30]} 27. c4 {[%clk 0:01:16]} 27... Rxd3
{[%clk 0:00:31]} 28. Rxd3 {[%clk 0:01:14.2]} 28... Qf5 {[%clk 0:00:28.9]} 29.
Rd7 {[%clk 0:01:10.8]} 29... Qe4+ {[%clk 0:00:22]} 30. Kh2 {[%clk 0:01:10.3]}
30... Rf7 {[%clk 0:00:18.3]} 31. Rd8+ {[%clk 0:01:11.7]} 31... Kh7 {[%clk
0:00:18.9]} 32. Qd3 {[%clk 0:01:07.5]} 32... Qxd3 {[%clk 0:00:18.2]} 33. Rxd3
{[%clk 0:01:09.3]} 33... Kg6 {[%clk 0:00:18.9]} 34. Kg3 {[%clk 0:01:07.4]} 34...
Kf5 {[%clk 0:00:19.8]} 35. Kf3 {[%clk 0:01:08.8]} 35... g5 {[%clk 0:00:15.4]}
36. fxg5 {[%clk 0:01:07.5]} 36... Kxe5+ {[%clk 0:00:16.6]} 37. Kg3 {[%clk
0:01:05.1]} 37... Ke4 {[%clk 0:00:13.1]} 38. Rd1 {[%clk 0:00:59.9]} 38... Bf2+
{[%clk 0:00:14]} 39. Kg2 {[%clk 0:00:59.9]} 39... Bh4 {[%clk 0:00:15.2]} 40. Rd6
{[%clk 0:00:57.2]} 40... Ke5 {[%clk 0:00:13.9]} 41. Rd3 {[%clk 0:00:55.3]} 41...
Rf2+ {[%clk 0:00:07.9]} 42. Kg1 {[%clk 0:00:53.8]} 42... Rc2 {[%clk 0:00:08.8]}
43. Bd2 {[%clk 0:00:48.9]} 43... Ke4 {[%clk 0:00:07]} 44. Re3+ {[%clk
0:00:46.1]} 44... Kd4 {[%clk 0:00:03.3]} 45. g6 {[%clk 0:00:37.7]} 45... Rxd2
{[%clk 0:00:04.7]} 46. Rxe6 {[%clk 0:00:35.3]} 46... Rd1+ {[%clk 0:00:05.5]} 47.
Kg2 {[%clk 0:00:31.2]} 47... Rd2+ {[%clk 0:00:07]} 48. Kg1 {[%clk 0:00:27.9]}
48... Kc5 {[%clk 0:00:07.9]} 49. g7 {[%clk 0:00:24.8]} 49... Rd8 {[%clk
0:00:08.8]} 50. Rh6 {[%clk 0:00:18.6]} 50... Rg8 {[%clk 0:00:03.2]} 51. Rxh5+
{[%clk 0:00:19.7]} 51... Kb4 {[%clk 0:00:04.7]} 52. Rxh4 {[%clk 0:00:15.5]}
52... Rxg7+ {[%clk 0:00:06.2]} 53. Rg4 {[%clk 0:00:17.4]} 53... Rd7 {[%clk
0:00:05]} 54. h4 {[%clk 0:00:18.3]} 54... Rd2 {[%clk 0:00:05.4]} 55. Rg2 {[%clk
0:00:18.3]} 55... Rd1+ {[%clk 0:00:06]} 56. Kh2 {[%clk 0:00:19.2]} 56... Kxc4
{[%clk 0:00:06.7]} 57. Kg3 {[%clk 0:00:19.3]} 57... Rd8 {[%clk 0:00:05.3]} 58.
h5 {[%clk 0:00:20.1]} 58... Rg8+ {[%clk 0:00:06]} 59. Kf3 {[%clk 0:00:21.4]}
59... Rf8+ {[%clk 0:00:06.6]} 60. Ke4 {[%clk 0:00:22.8]} 60... Rh8 {[%clk
0:00:06.9]} 61. Rh2 {[%clk 0:00:23.5]} 61... Rh6 {[%clk 0:00:08.4]} 62. Kf5
{[%clk 0:00:24.5]} 62... c5 {[%clk 0:00:09.8]} 63. Kg5 {[%clk 0:00:26.1]} 63...
Rh8 {[%clk 0:00:11.1]} 64. h6 {[%clk 0:00:27.7]} 64... b5 {[%clk 0:00:12.5]} 65.
Kf6 {[%clk 0:00:28.9]} 65... Kd3 {[%clk 0:00:13.4]} 66. Kg7 {[%clk 0:00:29.5]}
66... Rb8 {[%clk 0:00:12.8]} 67. h7 {[%clk 0:00:30.6]} 67... c4 {[%clk
0:00:13.4]} 68. a3 {[%clk 0:00:19.8]} 68... a5 {[%clk 0:00:14.1]} 69. Rh5 {[%clk
0:00:18]} 69... b4 {[%clk 0:00:07.7]} 70. axb4 {[%clk 0:00:15.5]} 70... axb4
{[%clk 0:00:08.7]} 71. Rb5 {[%clk 0:00:17]} 71... Rxb5 {[%clk 0:00:07.1]} 72.
h8=Q {[%clk 0:00:17.5]} 72... Rg5+ {[%clk 0:00:06]} 73. Kf6 {[%clk 0:00:09.6]}
73... Rg3 {[%clk 0:00:07.9]} 74. Qh7+ {[%clk 0:00:08.8]} 74... Ke3 {[%clk
0:00:08.6]} 75. Ke5 {[%clk 0:00:09.5]} 75... Rg5+ {[%clk 0:00:09.1]} 76. Kf6
{[%clk 0:00:10.5]} 76... Rg3 {[%clk 0:00:09.3]} 77. Qc2 {[%clk 0:00:11.4]} 77...
Rg4 {[%clk 0:00:07.6]} 78. Qc1+ {[%clk 0:00:11.8]} 78... Ke2 {[%clk 0:00:08.6]}
79. Qc2+ {[%clk 0:00:12.2]} 79... Ke3 {[%clk 0:00:10.1]} 80. Ke5 {[%clk
0:00:13.1]} 80... Rg5+ {[%clk 0:00:10.7]} 81. Kd6 {[%clk 0:00:13]} 81... Rg4
{[%clk 0:00:11.9]} 82. Qc1+ {[%clk 0:00:13.9]} 82... Ke2 {[%clk 0:00:13.2]} 83.
Kc5 {[%clk 0:00:14.5]} 83... b3 {[%clk 0:00:12.7]} 84. Kb4 {[%clk 0:00:15]}
84... Re4 {[%clk 0:00:11.9]} 85. Qg5 {[%clk 0:00:14.4]} 85... Kd3 {[%clk
0:00:12.8]} 86. Qg3+ {[%clk 0:00:14.7]} 86... Kc2 {[%clk 0:00:11.9]} 87. Qf2+
{[%clk 0:00:15.8]} 87... Kd3 {[%clk 0:00:12.5]} 88. Ka3 {[%clk 0:00:15.1]} 88...
Rd4 {[%clk 0:00:09.5]} 89. Qf3+ {[%clk 0:00:16.4]} 1-0